fUSD/lending_fUSD_20250916
["ID","MTS","AMOUNT","RATE_DAILY","PERIOD"]
[385757575,1758021031684,-789.0,0.00023183,2]
[385757576,1758021031694,-284.0,0.00023188,2]
[385757577,1758021031703,-250.0,0.00023188,2]
[385757578,1758021031713,-317.76759067,0.00023188,2]
[385757579,1758021031724,-1200.0,0.00023189,2]
[385757580,1758021031734,-1200.0,0.00023189,2]
[385757581,1758021031745,-250.0,0.00023189,2]
[385757582,1758021031758,-300.0,0.00023189,2]
[385757583,1758021031767,-266.0,0.0002323,2]
[385757584,1758021031777,-300.0,0.0002323,2]
[385757585,1758021031786,-519.44,0.00023231,2]
[385757586,1758021031795,-178.6,0.00023239,2]
[385757587,1758021031805,-267.46074303,0.00023477,2]
[385757588,1758021031814,-104.16334989,0.00023481,2]
[385757591,1758021031848,-619.35433313,0.00023481,2]
[385757595,1758021031888,-360.60790456,0.00023481,2]
[385757596,1758021031899,-368.07577376,0.00023481,2]
[385757598,1758021031922,-1081.86628715,0.00023481,2]
[385757607,1758021037541,-389.2,0.00023481,2]
[385757608,1758021037552,-1323.27193708,0.00023481,2]
[385757609,1758021037563,-753.46041443,0.00023481,2]
[385757610,1758021037572,-3863.54958557,0.00023573,2]
[385757611,1758021037629,-1380.46982003,0.00023573,2]
[385757729,1758021039573,-337.1399899,0.00023573,2]
[385757730,1758021039734,-7330.98452364,0.00023573,2]
[385757987,1758021042564,-520.77893313,0.0002108,2]
[385757989,1758021042573,-2134.08300573,0.00023573,2]
[385758337,1758021045986,-891.68839555,0.00023573,2]
[385758343,1758021046032,-13890.08467958,0.00023573,2]
[385758345,1758021046041,-764.95,0.00023611,2]
[385758347,1758021046050,-249.69,0.00023638,2]
[385758349,1758021046059,-250.0,0.00023663,2]
[385758351,1758021046068,-880.19,0.00023941,2]
[385758353,1758021046077,-177.53,0.00023949,2]
[385758355,1758021046086,-1000.0,0.0002395,2]
[385758357,1758021046097,-666.0,0.00024098,3]
[385758360,1758021046106,-150.0,0.00024098,7]
[385758362,1758021046116,-322.6107,0.00024098,2]
[385758364,1758021046125,-625.81445689,0.00024098,2]
[385758366,1758021046134,-151.0,0.00024098,2]
[385758368,1758021046144,-500.0,0.00024168,2]
[385758369,1758021046154,-168.0,0.00024226,2]
[385758371,1758021046163,-152.88,0.00024268,2]
[385758373,1758021046172,-150.57,0.00024268,2]
[385758375,1758021046182,-973.32884902,0.00024268,2]
[385758377,1758021046191,-249.69,0.00024276,2]
[385758379,1758021046201,-513.0,0.00024438,2]
[385758381,1758021046210,-213.1401216,0.00024494,2]
[385758383,1758021046219,-160.0,0.00024496,2]
[385758385,1758021046229,-168.0,0.00024499,2]
[385758387,1758021046238,-168.0,0.00024504,2]
[385758389,1758021046247,-426.0,0.000246,2]
[385758391,1758021046257,-5009.0,0.00024642,2]
[385758393,1758021046266,-5009.0,0.00024644,2]
[385758395,1758021046275,-5009.0,0.00024646,2]
[385758398,1758021046285,-4312.89650594,0.00024648,2]
[385758654,1758021145557,10000.0,0.00030137,120]
[385758655,1758021179433,10000.0,0.00030137,120]
[385758659,1758021316809,181.59,0.00026364,120]
[385758660,1758021317147,181.59,0.00029293,120]
[385758661,1758021383543,163.73,0.00011695,2]
[385758662,1758021383745,163.73,0.00013644,2]
[385758663,1758021384162,163.73,0.00015593,2]
[385758664,1758021384364,163.73,0.00017542,2]
[385758665,1758021384597,163.73,0.00019491,2]
[385758669,1758021602744,-333.23062383,0.00021059,2]
[385758720,1758022074538,9017.35,0.00018,2]
[385758721,1758022074564,9836.0,0.00018,2]
[385758722,1758022074587,1875.8116014,0.00018,2]
[385758723,1758022074608,4807.14457547,0.00018,2]
[385758724,1758022093018,564.32702593,0.0001439,2]
[385758725,1758022093039,5371.4716014,0.0001439,2]
[385758726,1758022093060,635.42099833,0.0001439,2]
[385758729,1758022114274,1900.0,0.0002,7]
[385758730,1758022114295,978.17655417,0.0002,7]
[385758773,1758022120066,351.69683735,0.0001901,7]
[385758975,1758022125414,3406.17721155,0.00015,2]
[385758977,1758022125434,5371.4716014,0.00015,2]
[385758978,1758022125455,5371.4716014,0.00015,2]
[385758980,1758022125475,5371.4716014,0.00015,2]
[385758982,1758022125498,5371.4716014,0.00015,2]
[385758983,1758022125518,5371.4716014,0.00015,2]
[385758985,1758022125538,5371.4716014,0.00015,2]
[385758987,1758022125564,2434.72968331,0.00015,2]
[385759236,1758022231765,-570.54078911,0.00021056,2]
[385759237,1758022231777,-346.84803172,0.00021056,2]
[385759238,1758022231981,-282.61117917,0.00021056,2]
[385759239,1758022231990,-261.57738149,0.00021057,2]
[385759240,1758022232000,-500.0,0.00021057,2]
[385759241,1758022232009,-500.0,0.00021057,2]
[385759242,1758022232018,-500.0,0.00021057,2]
[385759243,1758022232028,-500.0,0.00021057,2]
[385759244,1758022232037,-500.0,0.00021057,2]
[385759245,1758022232047,-500.0,0.00021057,2]
[385759246,1758022232056,-500.0,0.00021057,2]
[385759247,1758022232065,-500.0,0.00021057,2]
[385759248,1758022232075,-194.07317338,0.00021057,2]
[385759249,1758022232084,-500.0,0.00021057,2]
[385759250,1758022232094,-500.0,0.00021057,2]
[385759251,1758022232103,-151.0,0.0002106,2]
[385759252,1758022232112,-151.0,0.0002106,2]
[385759253,1758022232121,-151.0,0.0002106,2]
[385759254,1758022232130,-151.0,0.0002106,2]
[385759255,1758022232140,-151.0,0.0002106,2]
[385759256,1758022232149,-151.0,0.0002106,2]
[385759257,1758022232159,-151.0,0.0002106,2]
[385759258,1758022232168,-151.0,0.0002106,2]
[385759259,1758022232177,-151.0,0.0002106,2]
[385759260,1758022232187,-151.0,0.0002106,2]
[385759261,1758022232196,-151.0,0.0002106,2]
[385759262,1758022232206,-163.73,0.00021441,2]
[385759264,1758022232216,-600.0,0.0002211,2]
[385759267,1758022232225,-453.42,0.00022699,2]
[385759270,1758022232235,-1660.0,0.00023012,2]
[385759273,1758022232243,-160.0,0.0002306,2]
[385759276,1758022232253,-213.1401216,0.0002306,2]
[385759278,1758022232262,-515.95536276,0.0002306,2]
[385759280,1758022232272,-160.0,0.00023103,2]
[385759282,1758022232282,-2000.0,0.00023162,3]
[385759285,1758022232291,-195.0,0.00023162,2]
[385759288,1758022232300,-259.72,0.00023208,2]
[385759291,1758022232309,-178.6,0.00023247,2]
[385759294,1758022232318,-1000.0,0.00023388,2]
[385759296,1758022232327,-163.73,0.0002339,2]
[385759299,1758022232336,-150.0,0.00023419,7]
[385759302,1758022232345,-181.59,0.00023434,2]
[385759305,1758022232354,-397.0,0.00023448,2]
[385759308,1758022232363,-160.0,0.00023473,2]
[385759311,1758022232373,-410.0,0.000235,2]
[385759313,1758022232382,-197.0,0.0002357,2]
[385759315,1758022232392,-322.6107,0.00023681,2]
[385759317,1758022232401,-721.12765535,0.00023681,2]
[385759320,1758022232411,-267.46074303,0.00023681,2]
[385759323,1758022232425,-348.0,0.00023724,2]
[385759326,1758022232434,-158.25,0.00023726,2]
[385759329,1758022232443,-333.0,0.0002374,2]
[385759332,1758022232452,-757.4104728,0.00023925,2]
[385759335,1758022232462,-168.0,0.00023955,2]
[385759339,1758022232471,-3000.0,0.00024,2]
[385759341,1758022232481,-3239.53505528,0.00024,2]
[385759344,1758022232491,-168.0,0.00024072,2]
[385759346,1758022232502,-333.0,0.00024221,2]
[385759347,1758022232512,-186.0,0.00024397,2]
[385759349,1758022232521,-2865.02675,0.000244,2]
[385759352,1758022232532,-453.42,0.00024473,2]
[385759354,1758022232542,-227.284,0.00024609,7]
[385759356,1758022232551,-158.25,0.00024616,2]
[385759358,1758022232560,-1425.0,0.00024622,2]
[385759360,1758022232569,-514.13964029,0.00024626,2]
[385759362,1758022232582,-910.86035971,0.00024626,2]
[385759364,1758022232591,-696.10349406,0.00024648,2]
[385759366,1758022232600,-541.21151099,0.0002465,2]
[385759368,1758022232612,-1319.79933441,0.0002465,2]
[385759372,1758022232643,-602.19296096,0.0002465,2]
[385759377,1758022237755,-499.99,0.0002465,2]
[385759389,1758022240117,-183.10416704,0.00021055,2]
[385759391,1758022240126,-321.525833,0.0002465,2]
[385759671,1758022242876,-577.11924149,0.00021055,2]
[385759674,1758022242887,-1727.90036064,0.0002465,2]
[385759676,1758022242896,-1425.0,0.00024651,2]
[385759678,1758022242905,-2500.0,0.00024668,2]
[385759680,1758022242914,-1724.48539757,0.00024668,2]
[385759709,1758022243245,-5236.63812352,0.00024668,2]
[385759711,1758022243254,-307.91059861,0.00024668,2]
[385759713,1758022243263,-179.0861637,0.0002468,2]
[385762026,1758022887567,1000.0,0.0003,120]
[385762034,1758023431883,-500.0,0.00020748,2]
[385762049,1758023432395,-500.0,0.00020748,2]
[385762051,1758023432405,-250.0,0.00020749,2]
[385762053,1758023432414,-195.0,0.0002075,2]
[385762054,1758023432423,-1425.59228523,0.0002075,2]
[385762055,1758023432433,-500.0,0.00020954,2]
[385762056,1758023432441,-352.66,0.00022734,2]
[385762059,1758023432450,-419.77546263,0.00022824,2]
[385762062,1758023432459,-195.0,0.00022824,2]
[385762064,1758023432468,-250.0,0.00022824,2]
[385762066,1758023432477,-305.80954284,0.00022824,2]
[385762068,1758023432486,-300.0,0.00022934,2]
[385762070,1758023432494,-250.0,0.00022935,2]
[385762071,1758023432503,-300.0,0.00022935,2]
[385762072,1758023432513,-160.0,0.00023054,2]
[385762073,1758023432522,-213.1401216,0.00023054,2]
[385762075,1758023432531,-181.59,0.00023399,2]
[385762077,1758023432541,-150.0,0.00023434,7]
[385762078,1758023432551,-259.72,0.00023442,2]
[385762079,1758023432561,-250.62,0.00023514,2]
[385762080,1758023432571,-502.0,0.00023562,2]
[385762081,1758023432580,-200.0,0.00023598,2]
[385762082,1758023432590,-179.04,0.00023678,2]
[385762083,1758023432599,-267.46074303,0.00023687,2]
[385762084,1758023432609,-359.66322383,0.00023687,2]
[385762085,1758023432618,-178.97,0.00023703,2]
[385762086,1758023432627,-161.46,0.00023731,2]
[385762087,1758023432636,-684.76525686,0.00023861,7]
[385762088,1758023432646,-18047.70447421,0.00024,2]
[385762089,1758023432657,-15459.95898384,0.00024,2]
[385762090,1758023432668,-1008.2153469,0.00024,2]
[385762091,1758023432678,-379.97,0.00024078,2]
[385762092,1758023432687,-1575.7281565,0.00024182,2]
[385762093,1758023432697,-968.94156654,0.00024268,2]
[385762094,1758023432706,-387.0,0.000243,2]
[385762095,1758023432715,-256.0,0.000244,2]
[385762096,1758023432724,-165.02,0.00024452,2]
[385762097,1758023432733,-151.59,0.00024457,2]
[385762098,1758023432742,-352.66,0.00024504,2]
[385762099,1758023432751,-150.0,0.00024517,7]
[385762100,1758023432760,-6703.57255062,0.0002453,2]
[385762101,1758023432769,-277.2586,0.00024567,2]
[385762102,1758023432778,-181.827,0.00024575,7]
[385762103,1758023432787,-760.06764174,0.00024583,2]
[385762104,1758023432795,-322.6107,0.00024615,2]
[385762105,1758023432804,-41087.76789279,0.0002463,2]
[385762106,1758023432815,-1294.49204066,0.0002463,2]
[385762107,1758023432841,-284.759988,0.0002463,2]
[385762108,1758023432855,-932.42362079,0.0002463,2]
[385762109,1758023432919,-1971.51951459,0.0002463,2]
[385762131,1758023439881,-6982.21838999,0.0002453,2]
[385762132,1758023439988,-18267.64145301,0.0002453,2]
[385762133,1758023439999,-817.68834929,0.0002453,2]
[385762134,1758023440011,-3125.49190937,0.0002453,2]
[385762135,1758023440023,-2450.08099561,0.0002453,2]
[385762136,1758023440034,-5501.26343475,0.0002453,2]
[385762137,1758023440045,-400.0,0.0002453,2]
[385762164,1758023443150,-574.45,0.0002453,2]
[385762165,1758023443165,-264.93160668,0.0002453,2]
[385762166,1758023443176,-918.39243143,0.0002453,3]
[385762167,1758023443187,-659.85950103,0.0002453,3]
[385762175,1758023445841,-3303.50381037,0.0002453,3]
[385762176,1758023445895,-152587.66973573,0.0002453,3]
[385762208,1758023499769,151.0,0.00018951,2]
[385762247,1758023610795,500.0,0.00030028,120]
[385762271,1758023688740,160.59,0.00016712,2]
[385762292,1758023775898,307.51,0.00011687,2]
[385762293,1758023776603,307.51,0.00012302,2]
[385762294,1758023776690,307.51,0.00012917,2]
[385762295,1758023776754,307.51,0.00013532,2]
[385762296,1758023776957,307.51,0.00014147,2]
[385762297,1758023777176,248.0,0.00014762,2]
[385762298,1758023777204,59.51,0.00014762,2]
[385762299,1758023777399,307.51,0.00015377,2]
[385762300,1758023777607,307.51,0.00015992,2]
[385762301,1758023777858,307.51,0.00016608,2]
[385762302,1758023778042,307.51,0.00017223,2]
[385762303,1758023778244,307.51,0.00017838,2]
[385762304,1758023778447,307.51,0.00018453,2]
[385762305,1758023779185,-152.0,0.00019068,2]
[385762306,1758023780954,-155.51,0.00019068,2]
[385762307,1758023780979,-244.49,0.00019683,2]
[385762308,1758023783896,-63.02,0.00019683,2]
[385762365,1758024428756,170.05,0.00018454,2]
[385762378,1758024632163,-307.51,0.00020298,2]
[385762379,1758024632172,-335.4534,0.00020648,2]
[385762380,1758024632181,-307.51,0.00020913,2]
[385762381,1758024632191,-151.32,0.00021298,2]
[385762382,1758024632200,-307.51,0.00021528,2]
[385762383,1758024632209,-299.53,0.00022,2]
[385762384,1758024632219,-157.36358897,0.00022043,2]
[385762385,1758024632228,-307.51,0.00022143,2]
[385762386,1758024632237,-250.0,0.00022328,2]
[385762387,1758024632247,-331.36892882,0.00022328,3]
[385762388,1758024632256,-315.89929823,0.000225,2]
[385762389,1758024632319,-1375.72762304,0.000225,2]
[385762390,1758024632329,-1143.286698,0.00022644,2]
[385762391,1758024632338,-307.51,0.00022758,2]
[385762392,1758024632347,-666.0,0.00023003,3]
[385762393,1758024632356,-179.15,0.00023058,2]
[385762394,1758024632366,-333.33,0.00023119,2]
[385762395,1758024632375,-150.0,0.00023131,7]
[385762396,1758024632384,-1200.0,0.00023201,2]
[385762397,1758024632393,-250.0,0.00023202,2]
[385762398,1758024632403,-305.0,0.000233,5]
[385762399,1758024632412,-410.85915411,0.00023343,7]
[385762400,1758024632422,-307.51,0.00023374,2]
[385762401,1758024632431,-183.66,0.00023389,2]
[385762402,1758024632441,-150.0,0.00023426,2]
[385762403,1758024632450,-500.0,0.00023595,2]
[385762404,1758024632460,-179.0,0.00023595,2]
[385762405,1758024632470,-300.0,0.00023595,2]
[385762406,1758024632481,-1200.0,0.00023596,2]
[385762407,1758024632491,-2370.27,0.00023599,2]
[385762408,1758024632500,-322.6107,0.00023606,2]
[385762409,1758024632510,-267.46074303,0.00023606,2]
[385762410,1758024632520,-161.83,0.00023676,2]
[385762411,1758024632529,-161.46,0.00023726,2]
[385762412,1758024632538,-299.53,0.00023861,2]
[385762413,1758024632547,-873.44892041,0.00023919,2]
[385762415,1758024632557,-501.3,0.00024019,7]
[385762417,1758024632568,-500.0,0.00024019,7]
[385762419,1758024632579,-500.0,0.00024019,7]
[385762421,1758024632588,-500.0,0.00024019,7]
[385762423,1758024632598,-500.0,0.00024019,7]
[385762425,1758024632608,-500.0,0.00024019,7]
[385762427,1758024632618,-500.0,0.00024019,7]
[385762429,1758024632628,-500.0,0.00024019,7]
[385762430,1758024632638,-500.0,0.00024019,7]
[385762432,1758024632648,-500.0,0.00024019,7]
[385762433,1758024632659,-500.0,0.00024019,7]
[385762434,1758024632669,-500.0,0.00024019,7]
[385762435,1758024632679,-430.71,0.00024019,7]
[385762436,1758024632689,-371.0,0.000242,2]
[385762437,1758024632700,-151.59,0.00024439,2]
[385762438,1758024632710,-151.0,0.00024456,7]
[385762439,1758024632720,-3293.67536184,0.00024459,2]
[385762441,1758024632732,-666.0,0.00024459,2]
[385762442,1758024632743,-756.50390485,0.00024459,2]
[385762443,1758024632866,-4587.45845641,0.00024459,2]
[385762444,1758024632877,-2977.0762191,0.00024466,2]
[385762445,1758024632888,-873.44892042,0.0002453,2]
[385762446,1758024632898,-181.827,0.00024537,7]
[385762447,1758024632908,-3058.31562279,0.00024561,2]
[385762448,1758024632930,-466.77034477,0.00024561,2]
[385762462,1758024638873,-401.616215,0.00024561,2]
[385762463,1758024638896,-472.054999,0.00024561,2]
[385762464,1758024638907,-406.64253907,0.00024561,2]
[385762465,1758024638920,-1227.81557491,0.00024561,2]
[385762466,1758024638929,-492.7963626,0.00024561,2]
[385762467,1758024638941,-507.2036374,0.00024561,2]
[385762468,1758024638950,-2278.43549568,0.00024561,2]
[385762469,1758024638993,-4777.77333484,0.00024561,2]
[385762470,1758024639004,-510.04519947,0.00024561,2]
[385762471,1758024639015,-984.97231169,0.00024561,2]
[385762472,1758024639034,-1686.3039916,0.00024561,2]
[385762473,1758024639059,-294.22488331,0.00024561,2]
[385762474,1758024639087,-3261.67974628,0.00024561,2]
[385762475,1758024639098,-11434.40716334,0.00024561,2]
[385762477,1758024640144,-16388.62645493,0.00024561,2]
[385762478,1758024640302,-1260.3,0.00024561,2]
[385762492,1758024643223,-13227.88715466,0.00024561,2]
[385762493,1758024643484,-2501.20899847,0.00024561,2]
[385762494,1758024643495,-257.11476587,0.00024561,2]
[385762495,1758024643537,-421.64338965,0.00024561,2]
[385762496,1758024643548,-820.74908058,0.00024561,2]
[385762759,1758024646153,-1325.5496,0.00024561,2]
[385763029,1758024725328,159.28,0.00011824,2]
[385763066,1758025395477,500.0,0.00029314,120]
[385763069,1758025405097,500.0,0.000294,120]
[385763078,1758025514760,2200.50521776,0.000121,30]
[385763079,1758025525752,4389.24927041,0.000175,2]
[385763080,1758025526026,1012.52034489,0.000108,2]
[385763081,1758025537309,8348.2341492,9e-05,2]
[385763085,1758025631240,704.6539675,0.00015,2]
[385763088,1758025675197,4747.41976777,0.00018,2]
[385763091,1758025700237,21687.02171413,0.00012,30]
[385763105,1758025715084,255.39362238,0.00014,30]
[385763113,1758025757207,152.11,0.00011491,2]
[385763114,1758025757418,152.11,0.0001264,2]
[385763115,1758025757634,152.11,0.00013789,2]
[385763116,1758025757855,152.11,0.00014938,2]
[385763117,1758025758813,152.11,0.00016087,2]
[385763118,1758025758931,152.11,0.00017236,2]
[385763119,1758025759000,152.11,0.00018385,2]
[385763120,1758025759107,-152.11,0.00019534,2]
[385763124,1758025831552,-224.0,0.00019999,2]
[385763125,1758025831562,-32619.49682087,0.0002,2]
[385763126,1758025831573,-7826.42990496,0.0002,2]
[385763127,1758025831609,-2037.61625805,0.0002,2]
[385763128,1758025831620,-1583.78423866,0.0002,2]
[385763143,1758025837286,-656.63434667,0.0002,2]
[385763144,1758025837298,-4839.38,0.0002,2]
[385763145,1758025837347,-1008.4832349,0.0002,2]
[385763146,1758025837403,-5405.22158084,0.0002,2]
[385763147,1758025837414,-2696.92625174,0.0002,2]
[385763148,1758025837619,-305.37387015,0.0002,2]
[385763152,1758025839555,-488.48473031,0.0002,2]
[385763153,1758025839574,-2090.40897658,0.0002,2]
[385763154,1758025839626,-2791.37711714,0.0002,2]
[385763155,1758025839637,-703.96271192,0.0002,2]
[385763156,1758025839649,-5778.5,0.0002,2]
[385763157,1758025839662,-8012.28380009,0.0002,2]
[385763161,1758025840060,-266.0372898,0.0002,2]
[385763163,1758025842554,-295.11892219,0.0002,2]
[385763164,1758025842565,-901.14,0.0002,2]
[385763165,1758025842664,-1430.07539545,0.0002,2]
[385763179,1758025845314,-3696.79911047,0.0002,2]
[385763180,1758025845412,-14665.50007557,0.0002,2]
[385763186,1758025955404,1200.0,0.00021,30]
[385763199,1758025995305,331.312739,0.00029518,120]
[385763223,1758026008863,500.0,0.00029506,120]
[385763333,1758026291497,273.19764861,0.00030137,120]
[385763373,1758026673207,172.65,0.00017613,2]
[385763394,1758026917569,-184.87,0.000198,2]
[385763395,1758026919474,-500.0,0.000198,2]
[385763396,1758026921526,-400.0,0.000198,2]
[385763397,1758026923205,-214.68824987,0.000198,2]
[385763398,1758026925247,-525.69687512,0.000198,2]
[385763399,1758026929565,-357.96061402,0.000198,2]
[385763400,1758026931924,-75.68913701,0.000198,2]
[385763401,1758026931937,-275.09924398,0.000198,2]
[385763402,1758026933780,241.01852418,0.00019798,2]
[385763403,1758026947863,298.29,0.00011117,2]
[385763404,1758026948098,298.29,0.00011702,2]
[385763405,1758026948519,298.29,0.00012287,2]
[385763406,1758026948726,298.29,0.00012873,2]
[385763407,1758026948972,298.29,0.00013458,2]
[385763408,1758026949150,298.29,0.00014043,2]
[385763409,1758026949391,298.29,0.00014628,2]
[385763410,1758026949628,298.29,0.00015213,2]
[385763411,1758026949962,189.27147582,0.00015798,2]
[385763412,1758026949987,109.01852418,0.00015798,2]
[385763413,1758026950335,298.29,0.00016383,2]
[385763414,1758026950514,298.29,0.00016968,2]
[385763415,1758026950733,298.29,0.00017554,2]
[385763416,1758026950950,298.29,0.00018139,2]
[385763417,1758026951153,298.29,0.00018724,2]
[385763418,1758026951369,101.71,0.00019309,2]
[385763419,1758026955260,-196.58,0.00019309,2]
[385763448,1758027031655,-298.29,0.00019894,2]
[385763450,1758027031664,-300.0,0.00019897,2]
[385763452,1758027031676,-1200.0,0.00019897,2]
[385763454,1758027031686,-500.0,0.00019898,2]
[385763456,1758027031696,-500.0,0.00019898,2]
[385763458,1758027031705,-86.16004747,0.00019898,2]
[385763466,1758027031771,-413.83995253,0.00019898,2]
[385763468,1758027031780,-500.0,0.00019898,2]
[385763470,1758027031790,-500.0,0.00019898,2]
[385763472,1758027031799,-500.0,0.00019898,2]
[385763474,1758027031809,-207.06397212,0.00019898,2]
[385763476,1758027031818,-426.477518,0.00019898,2]
[385763478,1758027031828,-502.91924081,0.0001998,2]
[385763480,1758027031839,-151.0,0.00019988,2]
[385763482,1758027031848,-151.0,0.00019988,2]
[385763483,1758027031858,-151.0,0.00019988,2]
[385763484,1758027031869,-151.0,0.00019988,2]
[385763485,1758027031878,-151.0,0.00019988,2]
[385763487,1758027031888,-151.0,0.00019988,2]
[385763489,1758027031898,-151.0,0.00019988,2]
[385763491,1758027031907,-151.0,0.00019988,2]
[385763493,1758027031917,-30199.69931654,0.0002,2]
[385763495,1758027031928,-742.16308684,0.0002,2]
[385763499,1758027031952,-519.62300056,0.0002,2]
[385763501,1758027031963,-264.380006,0.0002,2]
[385763505,1758027031989,-23693.10923619,0.0002,2]
[385763507,1758027031998,-1701.87,0.00020379,2]
[385763509,1758027032007,-298.29,0.00020479,2]
[385763511,1758027032016,-152.11,0.00020683,2]
[385763513,1758027032025,-685.10422538,0.0002085,2]
[385763515,1758027032035,-298.29,0.00021064,2]
[385763516,1758027032044,-178.0,0.000211,2]
[385763518,1758027032053,-298.29,0.00021649,2]
[385763520,1758027032062,-1331.0,0.00021772,2]
[385763522,1758027032072,-152.11,0.00021832,2]
[385763524,1758027032082,-503.0,0.00021863,2]
[385763527,1758027032092,-135.44386397,0.00021865,2]
[385763532,1758027032126,-2403.67915853,0.00021865,2]
[385763534,1758027032135,-3675.6936921,0.00021865,2]
[385763537,1758027032144,-29561.3518141,0.00021865,2]
[385763540,1758027032153,-2000.0,0.00021874,3]
[385763543,1758027032163,-285.17044621,0.00021874,2]
[385763545,1758027032172,-2000.0,0.00021874,3]
[385763548,1758027032182,-873.83,0.00021929,2]
[385763550,1758027032191,-150.0,0.00021994,7]
[385763551,1758027032200,-150.0,0.00022,2]
[385763552,1758027032209,-357.08,0.00022,2]
[385763553,1758027032218,-210.08,0.00022,2]
[385763554,1758027032230,-168.0,0.00022107,2]
[385763555,1758027032240,-1485.99,0.00022113,2]
[385763556,1758027032249,-150.0,0.00022192,7]
[385763557,1758027032258,-298.29,0.00022235,2]
[385763558,1758027032267,-350.0,0.0002228,2]
[385763559,1758027032277,-168.0,0.00022325,2]
[385763560,1758027032286,-250.0,0.00022347,2]
[385763562,1758027032295,-191.9,0.00022368,2]
[385763564,1758027032304,-4658.83,0.00022374,2]
[385763566,1758027032313,-306.77,0.00022376,2]
[385763568,1758027032322,-268.27,0.00022441,2]
[385763570,1758027032331,-666.0,0.00022482,3]
[385763572,1758027032340,-501.66311822,0.00022558,2]
[385763574,1758027032350,-8501.46,0.00022574,2]
[385763576,1758027032359,-235.85,0.00022626,7]
[385763578,1758027032368,-170.72,0.00022653,2]
[385763580,1758027032378,-169.79,0.000227,2]
[385763582,1758027032387,-3841.35,0.00022708,2]
[385763584,1758027032396,-378.88735944,0.00022883,7]
[385763586,1758027032406,-213.1401216,0.0002291,2]
[385763588,1758027032415,-168.0,0.00022912,2]
[385763590,1758027032425,-168.0,0.00022931,2]
[385763592,1758027032434,-500.0,0.00022965,7]
[385763594,1758027032443,-150.0,0.00022965,7]
[385763596,1758027032453,-515.95536276,0.00022965,2]
[385763598,1758027032462,-160.0,0.00022965,2]
[385763600,1758027032472,-152.11,0.00022981,2]
[385763602,1758027032481,-151.0,0.00023003,7]
[385763604,1758027032491,-151.0,0.00023003,7]
[385763606,1758027032500,-151.0,0.00023003,7]
[385763608,1758027032510,-181.526585,0.00023003,7]
[385763610,1758027032519,-150.0,0.00023014,7]
[385763612,1758027032529,-500.0,0.00023239,7]
[385763614,1758027032538,-150.0,0.00023239,7]
[385763616,1758027032548,-770.0,0.0002328,2]
[385763618,1758027032557,-250.0,0.0002328,2]
[385763620,1758027032567,-150.0,0.00023347,2]
[385763622,1758027032577,-322.6107,0.00023398,2]
[385763624,1758027032586,-151.0,0.00023398,2]
[385763626,1758027032596,-267.46074303,0.00023398,2]
[385763628,1758027032605,-168.0,0.00023401,2]
[385763630,1758027032615,-380.0,0.0002341,2]
[385763632,1758027032624,-181.59,0.00023442,2]
[385763634,1758027032634,-343.0,0.0002347,2]
[385763636,1758027032643,-203.0,0.000235,2]
[385763637,1758027032653,-511.49171341,0.00023513,7]